fUSD/lending_fUSD_20250812
["ID","MTS","AMOUNT","RATE_DAILY","PERIOD"]
[378794446,1755019855080,-422.82,0.00041095,30]
[378794447,1755019855089,-553.33,0.00041095,30]
[378794448,1755019855099,-400.0,0.00041095,30]
[378794449,1755019855108,-400.0,0.00041095,30]
[378794450,1755019855117,-400.0,0.00041095,30]
[378794451,1755019855126,-400.0,0.00041095,30]
[378794452,1755019855136,-460.0,0.00041095,30]
[378794453,1755019855145,-400.0,0.00041095,30]
[378794454,1755019855154,-402.02681951,0.00041095,12]
[378794455,1755019855163,-160.892472,0.00041095,30]
[378794457,1755019855173,-460.0,0.00041095,30]
[378794458,1755019855182,-400.0,0.00041095,30]
[378794459,1755019855191,-400.0,0.00041095,30]
[378794460,1755019855199,-400.0,0.00041095,30]
[378794461,1755019855209,-460.0,0.00041095,30]
[378794462,1755019855218,-1060.05,0.00041095,30]
[378794463,1755019855227,-400.0,0.00041095,30]
[378794464,1755019855237,-597.2,0.00041095,30]
[378794465,1755019855246,-400.0,0.00041095,30]
[378794466,1755019855255,-400.0,0.00041095,30]
[378794467,1755019855264,-1236.7,0.00041095,30]
[378794468,1755019855274,-150.774202,0.00041095,30]
[378794469,1755019855283,-722.53,0.00041095,30]
[378794470,1755019855292,-400.0,0.00041095,30]
[378794471,1755019855302,-1079.26,0.00041095,30]
[378794472,1755019855311,-431.9,0.00041095,30]
[378794473,1755019855320,-400.0,0.00041095,30]
[378794474,1755019855329,-191.100628,0.00041095,30]
[378794475,1755019855342,-400.0,0.00041095,30]
[378794476,1755019855353,-345.12976154,0.00041095,30]
[378794477,1755019855362,-659.08,0.00041095,30]
[378794478,1755019855371,-460.0,0.00041095,30]
[378794479,1755019855382,-468.28,0.00041095,30]
[378794480,1755019855392,-449.75,0.00041095,30]
[378794481,1755019855402,-400.0,0.00041095,30]
[378794482,1755019855412,-451.82030923,0.00041095,30]
[378794483,1755019855423,-400.0,0.00041095,30]
[378794485,1755019855432,-400.0,0.00041095,30]
[378794486,1755019855441,-400.0,0.00041095,30]
[378794487,1755019855450,-400.0,0.00041095,30]
[378794488,1755019855460,-1000.0,0.00041095,120]
[378794489,1755019855469,-400.0,0.00041095,30]
[378794490,1755019855480,-400.0,0.00041095,30]
[378794491,1755019855489,-400.0,0.00041095,30]
[378794492,1755019855499,-882.03,0.00041095,30]
[378794493,1755019855508,-400.0,0.00041095,30]
[378794494,1755019855517,-825.53,0.00041095,30]
[378794495,1755019855527,-400.0,0.00041095,30]
[378794496,1755019855537,-586.94,0.00041095,30]
[378794497,1755019855546,-400.0,0.00041095,30]
[378794498,1755019855555,-400.0,0.00041095,30]
[378794499,1755019855564,-911.18,0.00041095,30]
[378794500,1755019855574,-400.0,0.00041095,30]
[378794501,1755019855583,-400.0,0.00041095,30]
[378794502,1755019855592,-400.0,0.00041095,30]
[378794503,1755019855603,-1234.99,0.00041095,30]
[378794504,1755019855613,-400.0,0.00041095,30]
[378794505,1755019855622,-400.0,0.00041095,30]
[378794506,1755019855632,-590.12,0.00041095,30]
[378794507,1755019855641,-400.0,0.00041095,30]
[378794508,1755019855650,-400.0,0.00041095,30]
[378794509,1755019855660,-400.0,0.00041095,30]
[378794511,1755019855670,-400.0,0.00041095,30]
[378794512,1755019855680,-400.0,0.00041095,30]
[378794513,1755019855691,-400.0,0.00041095,30]
[378794514,1755019855701,-853.68,0.00041095,30]
[378794515,1755019855710,-726.02,0.00041095,30]
[378794516,1755019855721,-400.0,0.00041095,30]
[378794517,1755019855731,-400.0,0.00041095,30]
[378794518,1755019855741,-790.14,0.00041095,30]
[378794519,1755019855750,-970.03,0.00041095,30]
[378794520,1755019855759,-400.0,0.00041095,30]
[378794521,1755019855768,-400.0,0.00041095,30]
[378794522,1755019855779,-617.42,0.00041095,30]
[378794523,1755019855788,-400.0,0.00041095,30]
[378794524,1755019855797,-400.0,0.00041095,30]
[378794525,1755019855806,-690.93,0.00041095,30]
[378794526,1755019855815,-400.0,0.00041095,30]
[378794527,1755019855825,-1208.27,0.00041095,30]
[378794528,1755019855834,-400.0,0.00041095,30]
[378794529,1755019855843,-408.08,0.00041095,30]
[378794530,1755019855853,-434.25,0.00041095,30]
[378794531,1755019855862,-400.0,0.00041095,30]
[378794532,1755019855871,-400.0,0.00041095,30]
[378794533,1755019855880,-400.0,0.00041095,30]
[378794534,1755019855889,-400.0,0.00041095,30]
[378794535,1755019855899,-400.0,0.00041095,30]
[378794536,1755019855907,-1110.96,0.00041095,30]
[378794537,1755019855916,-400.0,0.00041095,30]
[378794538,1755019855926,-400.0,0.00041095,30]
[378794540,1755019855936,-400.0,0.00041095,30]
[378794541,1755019855946,-1316.93,0.00041095,30]
[378794542,1755019855955,-400.0,0.00041095,30]
[378794543,1755019855964,-400.0,0.00041095,30]
[378794544,1755019855973,-819.53,0.00041095,30]
[378794545,1755019855982,-400.0,0.00041095,30]
[378794546,1755019855991,-400.0,0.00041095,30]
[378794547,1755019856000,-750.57,0.00041095,30]
[378794548,1755019856009,-408.0,0.00041095,30]
[378794549,1755019856018,-400.0,0.00041095,30]
[378794550,1755019856027,-400.0,0.00041095,30]
[378794551,1755019856037,-400.0,0.00041095,30]
[378794552,1755019856046,-932.64,0.00041095,30]
[378794553,1755019856055,-400.0,0.00041095,30]
[378794554,1755019856064,-583.48,0.00041095,30]
[378794555,1755019856074,-560.3,0.00041095,30]
[378794556,1755019856084,-400.0,0.00041095,30]
[378794557,1755019856093,-1056.87,0.00041095,30]
[378794558,1755019856103,-400.0,0.00041095,30]
[378794559,1755019856112,-400.0,0.00041095,30]
[378794560,1755019856121,-811.45,0.00041095,30]
[378794561,1755019856131,-400.0,0.00041095,30]
[378794562,1755019856140,-400.0,0.00041095,30]
[378794563,1755019856149,-1437.63,0.00041095,30]
[378794564,1755019856159,-557.18,0.00041095,30]
[378794565,1755019856169,-400.0,0.00041095,30]
[378794566,1755019856178,-400.0,0.00041095,30]
[378794567,1755019856188,-400.0,0.00041095,30]
[378794568,1755019856197,-745.9,0.00041095,30]
[378794569,1755019856207,-435.11,0.00041095,30]
[378794570,1755019856216,-1009.8,0.00041095,30]
[378794571,1755019856225,-400.0,0.00041095,30]
[378794572,1755019856234,-400.0,0.00041095,30]
[378794573,1755019856243,-964.91,0.00041095,30]
[378794575,1755019856363,-400.0,0.00041095,30]
[378794576,1755019856390,-400.0,0.00041095,30]
[378794577,1755019856399,-1167.37,0.00041095,30]
[378794578,1755019856409,-400.0,0.00041095,30]
[378794579,1755019856421,-400.0,0.00041095,30]
[378794580,1755019856431,-986.7,0.00041095,30]
[378794581,1755019856440,-400.0,0.00041095,30]
[378794582,1755019856449,-400.0,0.00041095,30]
[378794583,1755019856459,-400.0,0.00041095,30]
[378794584,1755019856469,-400.0,0.00041095,30]
[378794585,1755019856478,-627.45,0.00041095,30]
[378794586,1755019856487,-400.0,0.00041095,30]
[378794587,1755019856497,-400.0,0.00041095,30]
[378794588,1755019856506,-460.0,0.00041095,30]
[378794589,1755019856515,-976.63,0.00041095,30]
[378794590,1755019856524,-656.98,0.00041095,30]
[378794591,1755019856534,-413.35,0.00041095,30]
[378794592,1755019856543,-400.0,0.00041095,30]
[378794593,1755019856553,-400.0,0.00041095,30]
[378794594,1755019856562,-500.0,0.00041095,2]
[378794595,1755019856571,-500.0,0.00041095,2]
[378794596,1755019856580,-905.85,0.00041095,30]
[378794597,1755019856589,-1446.5,0.00041095,30]
[378794598,1755019856599,-1322.47,0.00041095,30]
[378794600,1755019856608,-400.0,0.00041095,30]
[378794601,1755019856618,-400.0,0.00041095,30]
[378794602,1755019856627,-785.21,0.00041095,30]
[378794603,1755019856636,-400.0,0.00041095,30]
[378794604,1755019856646,-400.0,0.00041095,30]
[378794605,1755019856656,-400.0,0.00041095,30]
[378794606,1755019856665,-411.68,0.00041095,30]
[378794607,1755019856674,-400.0,0.00041095,30]
[378794608,1755019856683,-902.06,0.00041095,30]
[378794609,1755019856693,-400.0,0.00041095,30]
[378794610,1755019856702,-580.5,0.00041095,30]
[378794611,1755019856711,-400.0,0.00041095,30]
[378794612,1755019856720,-400.0,0.00041095,30]
[378794613,1755019856730,-400.0,0.00041095,30]
[378794614,1755019856738,-1257.27,0.00041095,30]
[378794615,1755019856748,-400.0,0.00041095,30]
[378794616,1755019856757,-1351.37,0.00041095,30]
[378794617,1755019856766,-400.0,0.00041095,30]
[378794618,1755019856775,-400.0,0.00041095,30]
[378794619,1755019856785,-400.0,0.00041095,30]
[378794620,1755019856794,-400.0,0.00041095,30]
[378794621,1755019856803,-400.0,0.00041095,30]
[378794622,1755019856812,-639.77,0.00041095,30]
[378794623,1755019856821,-400.0,0.00041095,30]
[378794624,1755019856830,-750.15,0.00041095,30]
[378794625,1755019856839,-1237.4,0.00041095,30]
[378794626,1755019856849,-539.46,0.00041095,30]
[378794627,1755019856858,-400.0,0.00041095,30]
[378794628,1755019856867,-400.0,0.00041095,30]
[378794629,1755019856877,-528.31,0.00041095,30]
[378794630,1755019856886,-400.0,0.00041095,30]
[378794631,1755019856895,-400.0,0.00041095,30]
[378794632,1755019856905,-400.0,0.00041095,30]
[378794633,1755019856914,-407.93,0.00041095,30]
[378794634,1755019856923,-460.0,0.00041095,30]
[378794635,1755019856932,-400.0,0.00041095,30]
[378794636,1755019856941,-400.0,0.00041095,30]
[378794637,1755019856950,-400.0,0.00041095,30]
[378794638,1755019856960,-535.41,0.00041095,30]
[378794639,1755019856969,-437.68,0.00041095,30]
[378794640,1755019856978,-463.72657013,0.00041095,30]
[378794641,1755019856987,-400.0,0.00041095,30]
[378794642,1755019856997,-1547.54,0.00041095,30]
[378794643,1755019857006,-1298.42,0.00041095,30]
[378794644,1755019857015,-725.45,0.00041095,30]
[378794645,1755019857025,-400.0,0.00041095,30]
[378794646,1755019857034,-922.46,0.00041095,30]
[378794647,1755019857043,-243.77871317,0.00041095,30]
[378794648,1755019857052,-400.0,0.00041095,30]
[378794649,1755019857062,-511.23672669,0.00041095,30]
[378794650,1755019857072,-589.55,0.00041095,30]
[378794651,1755019857081,-400.0,0.00041095,30]
[378794652,1755019857091,-400.0,0.00041095,30]
[378794653,1755019857101,-400.0,0.00041095,30]
[378794654,1755019857110,-310.7511378,0.00041095,30]
[378794655,1755019857119,-400.0,0.00041095,30]
[378794656,1755019857129,-400.0,0.00041095,30]
[378794657,1755019857139,-400.0,0.00041095,30]
[378794658,1755019857148,-400.0,0.00041095,30]
[378794659,1755019857158,-400.0,0.00041095,30]
[378794660,1755019857168,-400.0,0.00041095,30]
[378794661,1755019857178,-459.61,0.00041095,30]
[378794662,1755019857187,-400.0,0.00041095,30]
[378794663,1755019857197,-400.0,0.00041095,30]
[378794664,1755019857207,-898.35,0.00041095,30]
[378794665,1755019857216,-682.79,0.00041095,30]
[378794666,1755019857226,-400.0,0.00041095,30]
[378794668,1755019857235,-400.0,0.00041095,30]
[378794669,1755019857245,-400.0,0.00041095,30]
[378794670,1755019857255,-400.0,0.00041095,30]
[378794671,1755019857264,-1000.0,0.00041095,30]
[378794672,1755019857274,-1299.25,0.00041095,30]
[378794673,1755019857283,-400.0,0.00041095,30]
[378794674,1755019857293,-444.63653978,0.00041095,30]
[378794675,1755019857302,-400.0,0.00041095,30]
[378794676,1755019857311,-1172.85,0.00041095,30]
[378794677,1755019857321,-400.0,0.00041095,30]
[378794678,1755019857331,-1034.16,0.00041095,30]
[378794679,1755019857343,-400.0,0.00041095,2]
[378794680,1755019857354,-400.0,0.00041095,30]
[378794681,1755019857363,-400.0,0.00041095,30]
[378794682,1755019857372,-783.56,0.00041095,30]
[378794683,1755019857383,-400.0,0.00041095,30]
[378794684,1755019857392,-400.99500338,0.00041095,5]
[378794685,1755019857401,-185.41835359,0.00041095,30]
[378794686,1755019857410,-400.0,0.00041095,30]
[378794687,1755019857419,-400.0,0.00041095,30]
[378794688,1755019857429,-400.57146005,0.00041095,30]
[378794689,1755019857439,-1408.03,0.00041095,30]
[378794690,1755019857448,-400.0,0.00041095,30]
[378794691,1755019857457,-400.0,0.00041095,30]
[378794692,1755019857466,-400.0,0.00041095,30]
[378794693,1755019857476,-1341.55,0.00041095,30]
[378794694,1755019857485,-1085.29,0.00041095,30]
[378794695,1755019857494,-400.0,0.00041095,30]
[378794697,1755019857504,-533.38,0.00041095,30]
[378794698,1755019857513,-400.0,0.00041095,30]
[378794699,1755019857522,-400.0,0.00041095,30]
[378794700,1755019857531,-400.0,0.00041095,30]
[378794701,1755019857540,-400.0,0.00041095,30]
[378794702,1755019857550,-400.0,0.00041095,30]
[378794703,1755019857559,-400.0,0.00041095,30]
[378794704,1755019857568,-400.0,0.00041095,30]
[378794705,1755019857578,-1094.05,0.00041095,30]
[378794706,1755019857587,-400.0,0.00041095,30]
[378794707,1755019857596,-400.0,0.00041095,30]
[378794708,1755019857606,-400.0,0.00041095,30]
[378794709,1755019857615,-400.0,0.00041095,30]
[378794710,1755019857624,-1199.8,0.00041095,30]
[378794711,1755019857633,-400.0,0.00041095,30]
[378794712,1755019857642,-400.0,0.00041095,30]
[378794713,1755019857651,-400.0,0.00041095,30]
[378794714,1755019857661,-400.0,0.00041095,30]
[378794715,1755019857670,-400.0,0.00041095,30]
[378794716,1755019857679,-400.0,0.00041095,30]
[378794717,1755019857688,-404.40948626,0.00041095,30]
[378794718,1755019857697,-400.0,0.00041095,30]
[378794719,1755019857706,-400.0,0.00041095,30]
[378794720,1755019857716,-1427.83,0.00041095,30]
[378794721,1755019857725,-400.0,0.00041095,30]
[378794722,1755019857734,-400.0,0.00041095,30]
[378794723,1755019857743,-400.0,0.00041095,30]
[378794724,1755019857753,-400.0,0.00041095,30]
[378794725,1755019857762,-400.0,0.00041095,30]
[378794726,1755019857771,-400.0,0.00041095,30]
[378794727,1755019857780,-400.0,0.00041095,30]
[378794729,1755019857789,-821.46,0.00041095,30]
[378794730,1755019857798,-630.0,0.00041095,30]
[378794731,1755019857807,-400.0,0.00041095,30]
[378794732,1755019857816,-672.08,0.00041095,30]
[378794733,1755019857825,-373.62840908,0.00041095,30]
[378794734,1755019857834,-400.0,0.00041095,30]
[378794735,1755019857843,-1226.11,0.00041095,30]
[378794736,1755019857853,-400.0,0.00041095,30]
[378794737,1755019857863,-681.07,0.00041095,30]
[378794738,1755019857872,-400.0,0.00041095,30]
[378794739,1755019857881,-400.0,0.00041095,30]
[378794740,1755019857890,-536.84,0.00041095,30]
[378794741,1755019857900,-400.0,0.00041095,3]
[378794742,1755019857909,-471.22,0.00041095,30]
[378794743,1755019857918,-400.0,0.00041095,30]
[378794744,1755019857930,-400.0,0.00041095,30]
[378794745,1755019857940,-519.26357108,0.00041095,30]
[378794746,1755019857950,-400.0,0.00041095,30]
[378794747,1755019857959,-174.27826026,0.00041095,30]
[378794748,1755019857968,-400.0,0.00041095,30]
[378794749,1755019857977,-400.0,0.00041095,30]
[378794750,1755019857991,-1645.17,0.00041095,30]
[378794751,1755019858000,-400.0,0.00041095,30]
[378794752,1755019858009,-1010.45,0.00041095,14]
[378794753,1755019858020,-1215.72,0.00041095,30]
[378794754,1755019858031,-400.0,0.00041095,30]
[378794755,1755019858041,-400.0,0.00041095,30]
[378794756,1755019858050,-400.0,0.00041095,30]
[378794757,1755019858058,-400.0,0.00041095,30]
[378794758,1755019858068,-400.0,0.00041095,30]
[378794760,1755019858077,-1288.67,0.00041095,30]
[378794761,1755019858086,-400.0,0.00041095,30]
[378794762,1755019858095,-400.0,0.00041095,30]
[378794763,1755019858105,-488.99412338,0.00041095,30]
[378794764,1755019858114,-400.0,0.00041095,30]
[378794765,1755019858123,-688.84,0.00041095,30]
[378794766,1755019858132,-492.41,0.00041095,30]
[378794767,1755019858142,-400.0,0.00041095,30]
[378794768,1755019858151,-400.0,0.00041095,30]
[378794769,1755019858160,-400.0,0.00041095,30]
[378794770,1755019858169,-400.0,0.00041095,30]
[378794771,1755019858178,-400.0,0.00041095,30]
[378794772,1755019858188,-500.0,0.00041095,30]
[378794773,1755019858197,-400.0,0.00041095,30]
[378794774,1755019858206,-1202.36,0.00041095,30]
[378794775,1755019858216,-500.0,0.00041095,30]
[378794776,1755019858342,-500.0,0.00041095,30]
[378794777,1755019858352,-400.0,0.00041095,30]
[378794778,1755019858362,-500.0,0.00041095,30]
[378794779,1755019858371,-400.0,0.00041095,30]
[378794780,1755019858381,-634.81,0.00041095,30]
[378794782,1755019858391,-500.0,0.00041095,30]
[378794783,1755019858399,-400.0,0.00041095,30]
[378794784,1755019858410,-597.82,0.00041095,30]
[378794785,1755019858419,-1518.71,0.00041095,30]
[378794786,1755019858428,-520.0,0.00041095,30]
[378794787,1755019858437,-737.74,0.00041095,30]
[378794788,1755019858447,-400.0,0.00041095,30]
[378794789,1755019858456,-771.66,0.00041095,30]
[378794790,1755019858465,-668.35,0.00041095,30]
[378794791,1755019858474,-1277.19,0.00041095,30]
[378794792,1755019858483,-620.97,0.00041095,30]
[378794793,1755019858493,-400.0,0.00041095,30]
[378794794,1755019858503,-400.0,0.00041095,30]
[378794795,1755019858512,-400.0,0.00041095,30]
[378794796,1755019858521,-401.37632082,0.00041095,2]
[378794797,1755019858531,-400.0,0.00041095,30]
[378794798,1755019858540,-400.0,0.00041095,30]
[378794799,1755019858549,-301.91519071,0.00041095,2]
[378794800,1755019858558,-787.17,0.00041095,30]
[378794801,1755019858568,-400.0,0.00041095,30]
[378794802,1755019858577,-400.0,0.00041095,30]
[378794803,1755019858587,-400.0,0.00041095,2]
[378794804,1755019858596,-400.0,0.00041095,30]
[378794805,1755019858606,-400.0,0.00041095,30]
[378794806,1755019858615,-400.0,0.00041095,30]
[378794808,1755019858625,-1265.17,0.00041095,30]
[378794809,1755019858634,-400.0,0.00041095,30]
[378794810,1755019858644,-1312.52,0.00041095,30]
[378794811,1755019858654,-400.0,0.00041095,30]
[378794812,1755019858663,-400.0,0.00041095,30]
[378794813,1755019858672,-400.0,0.00041095,30]
[378794814,1755019858681,-400.0,0.00041095,30]
[378794815,1755019858690,-400.0,0.00041095,30]
[378794816,1755019858700,-400.0,0.00041095,30]
[378794817,1755019858709,-2226.37,0.00041095,30]
[378794818,1755019858718,-726.28,0.00041095,30]
[378794819,1755019858727,-400.0,0.00041095,30]
[378794820,1755019858736,-400.0,0.00041095,30]
[378794821,1755019858745,-400.0,0.00041095,30]
[378794822,1755019858754,-400.0,0.00041095,30]
[378794823,1755019858763,-400.0,0.00041095,30]
[378794824,1755019858772,-529.43,0.00041095,30]
[378794825,1755019858782,-400.0,0.00041095,2]
[378794826,1755019858791,-400.0,0.00041095,30]
[378794827,1755019858800,-400.0,0.00041095,30]
[378794828,1755019858809,-400.0,0.00041095,30]
[378794829,1755019858819,-650.77,0.00041095,30]
[378794830,1755019858828,-400.0,0.00041095,30]
[378794831,1755019858838,-400.0,0.00041095,30]
[378794832,1755019858847,-400.0,0.00041095,30]
[378794833,1755019858858,-400.0,0.00041095,30]
[378794834,1755019858868,-900.36,0.00041095,30]
[378794835,1755019858877,-400.0,0.00041095,30]
[378794837,1755019858887,-400.0,0.00041095,30]
[378794838,1755019858896,-300.0,0.00041095,30]
[378794839,1755019858905,-711.69,0.00041095,30]
[378794840,1755019858914,-400.0,0.00041095,30]
[378794841,1755019858922,-400.0,0.00041095,30]
[378794842,1755019858931,-400.0,0.00041095,30]
[378794843,1755019858941,-400.0,0.00041095,30]
[378794844,1755019858950,-571.27,0.00041095,30]
[378794845,1755019858959,-400.0,0.00041095,30]
[378794846,1755019858968,-500.0,0.00041095,30]
[378794847,1755019858977,-500.0,0.00041095,30]
[378794848,1755019858986,-500.0,0.00041095,30]
[378794849,1755019858995,-400.0,0.00041095,30]
[378794850,1755019859004,-500.0,0.00041095,30]
[378794851,1755019859013,-400.0,0.00041095,30]
[378794852,1755019859022,-500.0,0.00041095,30]
[378794853,1755019859031,-400.0,0.00041095,30]
[378794854,1755019859040,-1557.03,0.00041095,30]
[378794855,1755019859049,-500.0,0.00041095,30]
[378794856,1755019859058,-500.0,0.00041095,30]
[378794858,1755019859068,-400.0,0.00041095,30]
[378794859,1755019859077,-500.0,0.00041095,30]
[378794860,1755019859086,-400.0,0.00041095,30]
[378794861,1755019859095,-400.46004206,0.00041095,30]
[378794862,1755019859106,-401.8565479,0.00041095,30]
[378794863,1755019859114,-400.0,0.00041095,30]
[378794864,1755019859124,-403.39097501,0.00041095,30]
[378794865,1755019859133,-400.0,0.00041095,30]
[378794866,1755019859142,-516.09,0.00041095,30]
[378794868,1755019859151,-400.0,0.00041095,30]
[378794869,1755019859160,-422.99,0.00041095,30]
[378794870,1755019859169,-400.0,0.00041095,30]
[378794871,1755019859178,-400.0,0.00041095,30]
[378794872,1755019859187,-400.0,0.00041095,30]
[378794873,1755019859196,-400.0,0.00041095,30]
[378794874,1755019859205,-400.0,0.00041095,30]
[378794875,1755019859215,-410.05667871,0.00041095,30]
[378794876,1755019859224,-400.0,0.00041095,30]
[378794877,1755019859233,-429.53611488,0.00041095,30]
[378794878,1755019859242,-400.0,0.00041095,30]
[378794879,1755019859251,-750.94,0.00041095,30]
[378794880,1755019859260,-400.0,0.00041095,30]
[378794881,1755019859270,-1099.99,0.00041095,30]
[378794882,1755019859280,-819.89,0.00041095,30]
[378794883,1755019859289,-400.99790412,0.00041095,30]
[378794885,1755019859298,-520.26,0.00041095,30]
[378794886,1755019859307,-859.51,0.00041095,30]
[378794887,1755019859317,-1305.1,0.00041095,30]
[378794888,1755019859326,-400.0,0.00041095,30]
[378794889,1755019859336,-400.0,0.00041095,30]
[378794890,1755019859346,-400.0,0.00041095,30]
[378794891,1755019859357,-400.0,0.00041095,30]
[378794892,1755019859366,-400.0,0.00041095,30]
[378794893,1755019859376,-150.0,0.00041096,2]
[378794894,1755019859385,-150.0,0.00041096,30]
[378794895,1755019859394,-5169.16079486,0.0004111,15]
[378794896,1755019859405,-150.0,0.0004112,2]
[378794897,1755019859417,-152.0,0.00041137,3]
[378794898,1755019859426,-150.0,0.00041169,2]
[378794899,1755019859436,-500.0,0.00041174,30]
[378794901,1755019859446,-150.0,0.00041174,2]
[378794902,1755019859456,-500.0,0.00041174,30]
[378794903,1755019859465,-150.0,0.00041174,30]
[378794904,1755019859474,-150.0,0.00041174,2]
[378794905,1755019859483,-150.0,0.00041174,30]
[378794906,1755019859492,-150.0,0.00041174,30]
[378794907,1755019859501,-150.0,0.00041182,2]
[378794908,1755019859512,-150.0,0.00041186,15]
[378794909,1755019859521,-150.0,0.00041186,15]
[378794910,1755019859530,-150.0,0.00041186,15]
[378794911,1755019859540,-150.0,0.00041186,15]
[378794912,1755019859549,-500.0,0.00041186,15]
[378794913,1755019859559,-1000.0,0.000412,7]
[378794914,1755019859569,-150.0,0.00041209,2]
[378794916,1755019859578,-1000.0,0.00041217,30]
[378794917,1755019859587,-3776.0,0.00041242,3]
[378794918,1755019859596,-150.0,0.00041248,2]
[378794919,1755019859606,-150.0,0.0004125,2]
[378794920,1755019859615,-173.46641,0.0004129,8]
[378794921,1755019859624,-264.92,0.00041317,14]
[378794922,1755019859633,-5169.16079486,0.00041336,15]
[378794923,1755019859642,-500.0,0.00041339,30]
[378794924,1755019859651,-353.0,0.0004134,2]
[378794925,1755019859660,-500.0,0.00041348,60]
[378794926,1755019859669,-200.0,0.00041348,60]
[378794928,1755019859678,-200.0,0.00041348,60]
[378794929,1755019859687,-500.0,0.00041348,60]
[378794930,1755019859696,-500.0,0.00041348,60]
[378794931,1755019859705,-300.0,0.00041348,30]
[378794932,1755019859714,-503.70305064,0.00041349,30]
[378794933,1755019859723,-150.0,0.00041349,120]
[378794934,1755019859732,-500.0,0.00041349,30]
[378794935,1755019859742,-150.0,0.00041353,2]
[378794936,1755019859751,-500.0,0.00041357,30]
[378794937,1755019859761,-500.0,0.00041357,30]
[378794938,1755019859770,-300.0,0.00041357,30]
[378794939,1755019859779,-47779.13078657,0.00041358,31]
[378794956,1755019862715,-1891.37744365,0.00041358,31]
[378794957,1755019862727,-1947.91513,0.00041358,31]
[378794958,1755019862860,-24266.57410257,0.00041358,31]
[378794959,1755019862892,-85718.03012826,0.00041358,31]
[378794960,1755019862919,-259.9038,0.00041095,30]
[378794961,1755019862939,-140.0962,0.00041095,30]
[378794962,1755019862950,-266.52533397,0.00041358,31]
[378794963,1755019862964,-40246.13421063,0.00041358,31]
[378794964,1755019862973,-403.5296489,0.00041358,61]
[378794965,1755019862982,-37061.14931004,0.00041358,3]
[378794966,1755019862994,-3200.59452536,0.00041358,3]
[378794967,1755019863004,-43.85412964,0.00041358,120]
[378794968,1755019863015,-167.14587036,0.00041358,120]
[378794969,1755019863024,-500.0,0.00041358,30]
[378794970,1755019863034,-500.0,0.00041358,30]
[378794971,1755019863043,-500.0,0.00041358,30]
[378794972,1755019863053,-550.38,0.00041358,30]
[378794973,1755019863063,-400.0,0.00041358,120]
[378794974,1755019863072,-500.0,0.00041358,30]
[378794975,1755019863082,-300.0,0.00041368,30]
[378794976,1755019863091,-300.0,0.00041368,30]
[378794977,1755019863101,-300.0,0.00041368,30]
[378794978,1755019863113,-500.0,0.00041368,30]
[378794979,1755019863122,-165.81,0.00041368,30]
[378794980,1755019863132,-428.22152503,0.00041368,30]